[Event "*** Titled Tuesday 3|2 Blitz"]
[Site "Chess.com"]
[Date "2015.01.27"]
[Round "1"]
[White "Imre91"]
[Black "zmaj23"]
[Result "1-0"]
[WhiteElo "2506"]
[BlackElo "2186"]
[TimeControl "180+2"]
[EndTime "11:08:02 PST"]
[Termination "Imre91 won by resignation"]

1. d4 {[%clk 0:02:57.9]} 1... Nf6 {[%clk 0:02:57.8]} 2. Nf3 {[%clk 0:02:59.4]}
2... e6 {[%clk 0:02:59.3]} 3. Bg5 {[%clk 0:02:58.8]} 3... b6 {[%clk 0:02:58.3]}
4. e3 {[%clk 0:03:00]} 4... Bb7 {[%clk 0:02:59.1]} 5. Bd3 {[%clk 0:03:01.5]}
5... c5 {[%clk 0:03:00.4]} 6. Nbd2 {[%clk 0:03:03]} 6... d6 {[%clk 0:02:56.9]}
7. O-O {[%clk 0:03:03.9]} 7... Nbd7 {[%clk 0:02:58.1]} 8. c3 {[%clk 0:03:05.2]}
8... Be7 {[%clk 0:02:58.2]} 9. a4 {[%clk 0:03:06.4]} 9... cxd4 {[%clk
0:02:58.1]} 10. exd4 {[%clk 0:03:07]} 10... h6 {[%clk 0:02:59.4]} 11. Bh4 {[%clk
0:03:03.4]} 11... g5 {[%clk 0:03:00.3]} 12. Bg3 {[%clk 0:03:04.2]} 12... Nh5
{[%clk 0:03:01.8]} 13. a5 {[%clk 0:03:05]} 13... Nxg3 {[%clk 0:03:02.3]} 14.
hxg3 {[%clk 0:03:05.6]} 14... Qc7 {[%clk 0:02:57.4]} 15. axb6 {[%clk 0:03:05.2]}
15... Nxb6 {[%clk 0:02:56.4]} 16. Be4 {[%clk 0:03:01.2]} 16... g4 {[%clk
0:02:36.8]} 17. Nh2 {[%clk 0:02:53.6]} 17... h5 {[%clk 0:02:34.8]} 18. Re1
{[%clk 0:02:54.7]} 18... d5 {[%clk 0:02:20.6]} 19. Bd3 {[%clk 0:02:54.7]} 19...
Bd6 {[%clk 0:02:21.1]} 20. Nhf1 {[%clk 0:02:55.6]} 20... Kd7 {[%clk 0:01:49.1]}
21. c4 {[%clk 0:02:42.7]} 21... dxc4 {[%clk 0:01:47.1]} 22. Nxc4 {[%clk
0:02:42.1]} 22... Nxc4 {[%clk 0:01:45.9]} 23. Qa4+ {[%clk 0:02:42.5]} 23... Bc6
{[%clk 0:01:34.7]} 24. Qxc4 {[%clk 0:02:42.4]} 24... h4 {[%clk 0:01:36.2]} 25.
Rac1 {[%clk 0:02:16.2]} 25... Qb7 {[%clk 0:01:31.9]} 26. Qxc6+ {[%clk 0:02:08]}
26... Qxc6 {[%clk 0:01:33.8]} 27. Rxc6 {[%clk 0:02:09.2]} 27... Kxc6 {[%clk
0:01:35.7]} 28. Be4+ {[%clk 0:02:10.9]} 28... Kb5 {[%clk 0:01:30.3]} 29. Bxa8
{[%clk 0:02:12.8]} 29... Rxa8 {[%clk 0:01:05.6]} 30. gxh4 {[%clk 0:02:10.6]}
30... Kc4 {[%clk 0:00:56.9]} 31. Ne3+ {[%clk 0:02:02.6]} 31... Kxd4 {[%clk
0:00:56.5]} 32. Rd1+ {[%clk 0:02:03.8]} 32... Kc5 {[%clk 0:00:55.2]} 33. Nxg4
{[%clk 0:02:05.4]} 33... f5 {[%clk 0:00:55.5]} 34. Ne3 {[%clk 0:02:03.2]} 34...
Be5 {[%clk 0:00:56.2]} 35. Rc1+ {[%clk 0:02:03.4]} 35... Kb4 {[%clk 0:00:54.7]}
36. Nd1 {[%clk 0:02:02.7]} 36... Rd8 {[%clk 0:00:53.9]} 37. g3 {[%clk
0:02:00.1]} 37... Rd2 {[%clk 0:00:54.6]} 38. Kg2 {[%clk 0:02:00]} 38... f4
{[%clk 0:00:55.2]} 39. g4 {[%clk 0:02:00.1]} 39... a5 {[%clk 0:00:51.2]} 40. Kf3
{[%clk 0:01:59]} 40... a4 {[%clk 0:00:51.3]} 41. h5 {[%clk 0:01:55.6]} 41... Bg7
{[%clk 0:00:26.1]} 42. g5 {[%clk 0:01:55.6]} 42... e5 {[%clk 0:00:26.4]} 43. h6
{[%clk 0:01:56]} 43... Bh8 {[%clk 0:00:27.2]} 44. g6 {[%clk 0:01:56]} 44... Rd3+
{[%clk 0:00:21.5]} 45. Ke4 {[%clk 0:01:55.8]} 45... Rd4+ {[%clk 0:00:20.9]} 46.
Kf5 {[%clk 0:01:56.5]} 46... Rd7 {[%clk 0:00:19.9]} 47. Nc3 {[%clk 0:01:57.5]}
47... Kb3 {[%clk 0:00:20.4]} 48. Rd1 {[%clk 0:01:54.6]} 48... Re7 {[%clk
0:00:19.9]} 49. Rd8 {[%clk 0:01:53]} 49... Kxb2 {[%clk 0:00:20.4]} 50. Nxa4+
{[%clk 0:01:53.8]} 50... Kb3 {[%clk 0:00:21.6]} 51. Rxh8 {[%clk 0:01:54.4]}
51... Kxa4 {[%clk 0:00:22.6]} 52. g7 {[%clk 0:01:56]} 1-0

[Event "*** Titled Tuesday 3|2 Blitz"]
[Site "Chess.com"]
[Date "2015.01.27"]
[Round "1"]
[White "TooOldTooSlow70"]
[Black "FytNob"]
[Result "1-0"]
[WhiteElo "2320"]
[BlackElo "1858"]
[TimeControl "180+2"]
[EndTime "11:08:09 PST"]
[Termination "TooOldTooSlow70 won on time"]

1. Nf3 {[%clk 0:02:36.7]} 1... c5 {[%clk 0:02:58.2]} 2. c4 {[%clk 0:02:36.1]}
2... Nc6 {[%clk 0:02:57.8]} 3. Nc3 {[%clk 0:02:35.8]} 3... g6 {[%clk 0:02:57.7]}
4. e3 {[%clk 0:02:36.6]} 4... Bg7 {[%clk 0:02:56]} 5. d4 {[%clk 0:02:37.5]} 5...
cxd4 {[%clk 0:02:51.3]} 6. exd4 {[%clk 0:02:39.4]} 6... d6 {[%clk 0:02:52.8]} 7.
d5 {[%clk 0:02:33.5]} 7... Ne5 {[%clk 0:02:52.9]} 8. Nxe5 {[%clk 0:02:34]} 8...
Bxe5 {[%clk 0:02:54.8]} 9. Be2 {[%clk 0:02:34.9]} 9... Bf5 {[%clk 0:02:49]} 10.
O-O {[%clk 0:02:26.1]} 10... h5 {[%clk 0:02:49.4]} 11. Qb3 {[%clk 0:02:23.6]}
11... Qd7 {[%clk 0:02:47.6]} 12. c5 {[%clk 0:02:21.7]} 12... a6 {[%clk
0:02:43.1]} 13. c6 {[%clk 0:02:16.4]} 13... bxc6 {[%clk 0:02:35.5]} 14. dxc6
{[%clk 0:02:18.3]} 14... Qc8 {[%clk 0:02:31]} 15. Nd5 {[%clk 0:01:50.1]} 15...
Rb8 {[%clk 0:02:26.9]} 16. Qa4 {[%clk 0:01:46]} 16... Kf8 {[%clk 0:02:20.1]} 17.
c7 {[%clk 0:01:26.3]} 17... Rb7 {[%clk 0:01:52.5]} 18. Bxa6 {[%clk 0:01:26.1]}
18... Nf6 {[%clk 0:01:52.2]} 19. Bxb7 {[%clk 0:01:22]} 19... Qxb7 {[%clk
0:01:52.1]} 20. Nxf6 {[%clk 0:01:15.9]} 20... Bxf6 {[%clk 0:01:54]} 21. Qc4
{[%clk 0:01:03]} 21... Kg7 {[%clk 0:01:53.3]} 22. Be3 {[%clk 0:00:59.2]} 22...
Rc8 {[%clk 0:01:46.1]} 23. Bd4 {[%clk 0:00:59.6]} 23... e5 {[%clk 0:01:36.7]}
24. Bc3 {[%clk 0:00:59.9]} 24... d5 {[%clk 0:01:36.6]} 25. Qe2 {[%clk
0:00:48.2]} 25... d4 {[%clk 0:01:19.8]} 26. Ba5 {[%clk 0:00:48.7]} 26... Qd5
{[%clk 0:01:12.1]} 27. b4 {[%clk 0:00:46.4]} 27... d3 {[%clk 0:01:07.8]} 28. Qd2
{[%clk 0:00:46.1]} 28... e4 {[%clk 0:01:09.1]} 29. Rac1 {[%clk 0:00:46.6]} 29...
Bd4 {[%clk 0:01:07.2]} 30. a4 {[%clk 0:00:40.4]} 30... Qe6 {[%clk 0:00:58.3]}
31. Rfe1 {[%clk 0:00:40.7]} 31... Qb3 {[%clk 0:00:43.3]} 32. b5 {[%clk
0:00:37.4]} 32... h4 {[%clk 0:00:17.9]} 33. Bc3 {[%clk 0:00:37.9]} 33... Bf6
{[%clk 0:00:12.1]} 34. Bxf6+ {[%clk 0:00:36.7]} 34... Kxf6 {[%clk 0:00:14]} 35.
Qc3+ {[%clk 0:00:37.5]} 35... Qxc3 {[%clk 0:00:14.8]} 36. Rxc3 {[%clk
0:00:39.4]} 36... Ke7 {[%clk 0:00:05.5]} 37. b6 {[%clk 0:00:40.1]} 37... e3
{[%clk 0:00:02.2]} 38. Rxe3+ {[%clk 0:00:40.1]} 1-0

[Event "*** Titled Tuesday 3|2 Blitz"]
[Site "Chess.com"]
[Date "2015.01.27"]
[Round "1"]
[White "chesstatour"]
[Black "LADIESGET2KNOWME"]
[Result "1-0"]
[WhiteElo "1879"]
[BlackElo "2308"]
[TimeControl "180+2"]
[EndTime "11:09:23 PST"]
[Termination "chesstatour won on time"]

1. c4 {[%clk 0:03:00]} 1... Nf6 {[%clk 0:02:58]} 2. Nc3 {[%clk 0:03:01.9]} 2...
g6 {[%clk 0:02:59.6]} 3. e4 {[%clk 0:03:03.1]} 3... d6 {[%clk 0:03:00.9]} 4. d4
{[%clk 0:03:04.6]} 4... Bg7 {[%clk 0:03:02.5]} 5. f4 {[%clk 0:03:06.2]} 5... O-O
{[%clk 0:03:03.7]} 6. Nf3 {[%clk 0:03:07.7]} 6... c5 {[%clk 0:03:05.2]} 7. d5
{[%clk 0:03:09.1]} 7... e6 {[%clk 0:03:06.8]} 8. dxe6 {[%clk 0:03:11]} 8... Bxe6
{[%clk 0:03:06.8]} 9. Bd3 {[%clk 0:03:12.5]} 9... Bg4 {[%clk 0:03:07.8]} 10. O-O
{[%clk 0:03:12]} 10... Nc6 {[%clk 0:03:08.7]} 11. Qe1 {[%clk 0:03:13.3]} 11...
Bxf3 {[%clk 0:03:01.7]} 12. Rxf3 {[%clk 0:03:15.2]} 12... Nd4 {[%clk 0:03:02.6]}
13. Rh3 {[%clk 0:03:16.3]} 13... Ng4 {[%clk 0:02:59.6]} 14. f5 {[%clk
0:02:54.6]} 14... Re8 {[%clk 0:02:49.7]} 15. Qg3 {[%clk 0:02:40.9]} 15... Ne5
{[%clk 0:02:09]} 16. Bf4 {[%clk 0:02:01]} 16... a6 {[%clk 0:01:59.3]} 17. Nd5
{[%clk 0:01:51]} 17... b5 {[%clk 0:01:56.4]} 18. b3 {[%clk 0:01:32.9]} 18...
Nxd3 {[%clk 0:01:32]} 19. Qxd3 {[%clk 0:01:30]} 19... Ne2+ {[%clk 0:01:28.4]}
20. Qxe2 {[%clk 0:01:29.1]} 20... Bxa1 {[%clk 0:01:30.3]} 21. Qg4 {[%clk
0:01:13.6]} 21... Bd4+ {[%clk 0:01:29.1]} 22. Be3 {[%clk 0:01:08.3]} 22... Bxe3+
{[%clk 0:01:23.4]} 23. Rxe3 {[%clk 0:01:06.8]} 23... bxc4 {[%clk 0:01:22.8]} 24.
bxc4 {[%clk 0:01:07]} 24... Rb8 {[%clk 0:01:22.6]} 25. h3 {[%clk 0:00:54]} 25...
Rb2 {[%clk 0:01:09.5]} 26. Rf3 {[%clk 0:00:41.2]} 26... Re2 {[%clk 0:00:56.2]}
27. fxg6 {[%clk 0:00:37.7]} 27... fxg6 {[%clk 0:00:48.4]} 28. Nf6+ {[%clk
0:00:27.8]} 28... Kg7 {[%clk 0:00:36.7]} 29. Nxe8+ {[%clk 0:00:07.5]} 29... Qxe8
{[%clk 0:00:38.6]} 30. Rf4 {[%clk 0:00:09]} 30... Re1+ {[%clk 0:00:33.8]} 31.
Kh2 {[%clk 0:00:09.2]} 31... Re3 {[%clk 0:00:34]} 32. h4 {[%clk 0:00:08.3]}
32... Qe7 {[%clk 0:00:33.2]} 33. g3 {[%clk 0:00:08.7]} 33... Ra3 {[%clk
0:00:32.3]} 34. Rf2 {[%clk 0:00:06.5]} 34... Re3 {[%clk 0:00:32.4]} 35. Rf4
{[%clk 0:00:05.6]} 35... Rc3 {[%clk 0:00:33.8]} 36. Qe2 {[%clk 0:00:03]} 36...
Rc1 {[%clk 0:00:27.7]} 37. h5 {[%clk 0:00:03.7]} 37... Qg5 {[%clk 0:00:24.2]}
38. Qb2+ {[%clk 0:00:03.9]} 38... Qe5 {[%clk 0:00:21.4]} 39. Qxc1 {[%clk
0:00:05.1]} 39... Qxh5+ {[%clk 0:00:23.3]} 40. Kg2 {[%clk 0:00:05.3]} 40... Qe2+
{[%clk 0:00:24.5]} 41. Rf2 {[%clk 0:00:05.6]} 41... Qxe4+ {[%clk 0:00:25.7]} 42.
Kg1 {[%clk 0:00:05.3]} 42... h5 {[%clk 0:00:24.8]} 43. Qb2+ {[%clk 0:00:06.8]}
43... Kh6 {[%clk 0:00:25.2]} 44. Qc2 {[%clk 0:00:08.4]} 44... Qd4 {[%clk
0:00:24.2]} 45. Qd2+ {[%clk 0:00:09.3]} 45... Kg7 {[%clk 0:00:18.5]} 46. Qxd4+
{[%clk 0:00:10.2]} 46... cxd4 {[%clk 0:00:20.4]} 47. Rd2 {[%clk 0:00:11.7]}
47... Kf6 {[%clk 0:00:22]} 48. Rxd4 {[%clk 0:00:13.3]} 48... Ke5 {[%clk
0:00:23.2]} 49. Rd5+ {[%clk 0:00:13.5]} 1-0

[Event "*** Titled Tuesday 3|2 Blitz"]
[Site "Chess.com"]
[Date "2015.01.27"]
[Round "1"]
[White "megarompa"]
[Black "bugsbunny444"]
[Result "1-0"]
[WhiteElo "2643"]
[BlackElo "2261"]
[TimeControl "180+2"]
[EndTime "11:09:49 PST"]
[Termination "megarompa won by checkmate"]

1. d4 {[%clk 0:02:58.8]} 1... e6 {[%clk 0:02:58]} 2. Nf3 {[%clk 0:03:00.7]} 2...
d5 {[%clk 0:02:58.4]} 3. c4 {[%clk 0:03:01.7]} 3... c6 {[%clk 0:02:59.2]} 4. Nc3
{[%clk 0:03:03.5]} 4... Nf6 {[%clk 0:03:00.6]} 5. Bg5 {[%clk 0:03:03.5]} 5...
Nbd7 {[%clk 0:03:01.2]} 6. e3 {[%clk 0:03:03.9]} 6... Qa5 {[%clk 0:03:02.3]} 7.
Bxf6 {[%clk 0:03:00.9]} 7... Nxf6 {[%clk 0:03:03.1]} 8. Bd3 {[%clk 0:03:02.6]}
8... Bd6 {[%clk 0:03:04.3]} 9. O-O {[%clk 0:03:02.6]} 9... O-O {[%clk
0:03:05.4]} 10. e4 {[%clk 0:03:01.3]} 10... dxc4 {[%clk 0:03:06.1]} 11. Bxc4
{[%clk 0:03:01.9]} 11... e5 {[%clk 0:03:06.9]} 12. dxe5 {[%clk 0:03:02.6]} 12...
Bxe5 {[%clk 0:03:08]} 13. Qc2 {[%clk 0:03:01.1]} 13... Bxc3 {[%clk 0:02:32.4]}
14. bxc3 {[%clk 0:02:55.3]} 14... Ng4 {[%clk 0:01:54]} 15. h3 {[%clk 0:02:50.3]}
15... Ne5 {[%clk 0:01:54.8]} 16. Nxe5 {[%clk 0:02:50.5]} 16... Qxe5 {[%clk
0:01:56.7]} 17. Rae1 {[%clk 0:02:42.5]} 17... Be6 {[%clk 0:01:51.2]} 18. Bb3
{[%clk 0:02:39.7]} 18... Rad8 {[%clk 0:01:49.2]} 19. f4 {[%clk 0:02:33.6]} 19...
Qc5+ {[%clk 0:01:46.4]} 20. Kh2 {[%clk 0:02:34.5]} 20... Bc4 {[%clk 0:01:44.6]}
21. Rf3 {[%clk 0:02:25.3]} 21... b5 {[%clk 0:01:32.7]} 22. e5 {[%clk 0:02:23]}
22... Rfe8 {[%clk 0:01:29.6]} 23. Qf5 {[%clk 0:02:18.1]} 23... g6 {[%clk
0:01:11.5]} 24. Qg5 {[%clk 0:02:12.6]} 24... a5 {[%clk 0:01:06]} 25. f5 {[%clk
0:01:56.7]} 25... Bxb3 {[%clk 0:00:49]} 26. axb3 {[%clk 0:01:53.8]} 26... Rd5
{[%clk 0:00:49.6]} 27. fxg6 {[%clk 0:01:42.4]} 27... hxg6 {[%clk 0:00:50.2]} 28.
Qf6 {[%clk 0:01:24.6]} 28... Qe7 {[%clk 0:00:41.8]} 29. Qxc6 {[%clk 0:01:25.3]}
29... Rxe5 {[%clk 0:00:41.3]} 30. Ref1 {[%clk 0:01:25.7]} 30... Rc5 {[%clk
0:00:26.3]} 31. Qa6 {[%clk 0:01:26.4]} 31... Qc7+ {[%clk 0:00:26.1]} 32. Kh1
{[%clk 0:01:18.1]} 32... Re7 {[%clk 0:00:27.4]} 33. c4 {[%clk 0:01:12.3]} 33...
bxc4 {[%clk 0:00:26.9]} 34. bxc4 {[%clk 0:01:13.7]} 34... Rxc4 {[%clk
0:00:23.4]} 35. Qb5 {[%clk 0:00:47.9]} 35... Rc1 {[%clk 0:00:21.4]} 36. Qd5
{[%clk 0:00:48.6]} 36... Rxf1+ {[%clk 0:00:21.6]} 37. Rxf1 {[%clk 0:00:48.3]}
37... Qe5 {[%clk 0:00:18.9]} 38. Qc6 {[%clk 0:00:44.3]} 38... Kg7 {[%clk
0:00:20]} 39. Qa4 {[%clk 0:00:44.4]} 39... Rb7 {[%clk 0:00:16.7]} 40. Qa2 {[%clk
0:00:40.7]} 40... Re7 {[%clk 0:00:14.3]} 41. Qa4 {[%clk 0:00:39.3]} 41... Rb7
{[%clk 0:00:15]} 42. Qc2 {[%clk 0:00:39.1]} 42... Re7 {[%clk 0:00:14.1]} 43. Qd2
{[%clk 0:00:36.4]} 43... Qe2 {[%clk 0:00:11.9]} 44. Qd4+ {[%clk 0:00:34.8]}
44... Qe5 {[%clk 0:00:13.1]} 45. Qd2 {[%clk 0:00:32.5]} 45... a4 {[%clk
0:00:14]} 46. Qb4 {[%clk 0:00:30.4]} 46... Ra7 {[%clk 0:00:14.5]} 47. Qb6 {[%clk
0:00:31.3]} 47... Qa5 {[%clk 0:00:08.1]} 48. Qd4+ {[%clk 0:00:29.8]} 48... Kh7
{[%clk 0:00:08]} 49. Rf4 {[%clk 0:00:28.2]} 49... Qe1+ {[%clk 0:00:05.8]} 50.
Kh2 {[%clk 0:00:26.8]} 50... Ra5 {[%clk 0:00:05.2]} 51. Rxf7+ {[%clk 0:00:24.7]}
51... Kh6 {[%clk 0:00:06.1]} 52. Qh8+ {[%clk 0:00:24.4]} 52... Kg5 {[%clk
0:00:07.2]} 53. Qf6+ {[%clk 0:00:21.4]} 53... Kh6 {[%clk 0:00:08.6]} 54. Qf4+
{[%clk 0:00:19.5]} 54... Kh5 {[%clk 0:00:07.5]} 55. Rh7# {[%clk 0:00:20]} 1-0

[Event "*** Titled Tuesday 3|2 Blitz"]
[Site "Chess.com"]
[Date "2015.01.27"]
[Round "1"]
[White "AUSSIE_PINOY"]
[Black "AnthonyWirig"]
[Result "0-1"]
[WhiteElo "2213"]
[BlackElo "2521"]
[TimeControl "180+2"]
[EndTime "11:11:22 PST"]
[Termination "AnthonyWirig won by resignation"]

1. d4 {[%clk 0:02:57.3]} 1... Nf6 {[%clk 0:02:57.9]} 2. Nf3 {[%clk 0:02:58.2]}
2... b6 {[%clk 0:02:57.5]} 3. c4 {[%clk 0:02:57.5]} 3... Bb7 {[%clk 0:02:58.5]}
4. a3 {[%clk 0:02:58.3]} 4... g6 {[%clk 0:02:59.5]} 5. Nc3 {[%clk 0:02:59.2]}
5... Bg7 {[%clk 0:03:00.5]} 6. d5 {[%clk 0:02:59.2]} 6... e6 {[%clk 0:02:41.3]}
7. Bg5 {[%clk 0:02:54.1]} 7... h6 {[%clk 0:02:30.8]} 8. Bh4 {[%clk 0:02:54.5]}
8... exd5 {[%clk 0:02:26.7]} 9. cxd5 {[%clk 0:02:54.5]} 9... O-O {[%clk
0:02:13.3]} 10. e3 {[%clk 0:02:54.8]} 10... c6 {[%clk 0:01:59.9]} 11. d6 {[%clk
0:02:35.6]} 11... Qe8 {[%clk 0:01:47.6]} 12. Qc2 {[%clk 0:02:00.4]} 12... Qe6
{[%clk 0:01:28.6]} 13. Rd1 {[%clk 0:01:56]} 13... c5 {[%clk 0:01:18.3]} 14. Be2
{[%clk 0:01:52.8]} 14... Ne4 {[%clk 0:01:16.7]} 15. Be7 {[%clk 0:01:48.8]} 15...
Re8 {[%clk 0:01:16.9]} 16. O-O {[%clk 0:01:49.8]} 16... Nxc3 {[%clk 0:01:17.2]}
17. bxc3 {[%clk 0:01:49.8]} 17... Be4 {[%clk 0:01:18.3]} 18. Qa4 {[%clk
0:01:42.5]} 18... Nc6 {[%clk 0:01:13]} 19. Nd2 {[%clk 0:01:40.4]} 19... Nxe7
{[%clk 0:00:58.8]} 20. Nxe4 {[%clk 0:01:30.1]} 20... Nf5 {[%clk 0:00:26.9]} 21.
Bd3 {[%clk 0:00:57.3]} 21... a6 {[%clk 0:00:24]} 22. c4 {[%clk 0:00:50.4]} 22...
Be5 {[%clk 0:00:20.4]} 23. Bb1 {[%clk 0:00:46.5]} 23... Nxd6 {[%clk 0:00:20.5]}
24. Nxd6 {[%clk 0:00:46.5]} 24... Bxd6 {[%clk 0:00:22]} 25. Qb3 {[%clk
0:00:45.9]} 25... Be5 {[%clk 0:00:22.6]} 26. g3 {[%clk 0:00:45.9]} 26... Rab8
{[%clk 0:00:22.6]} 27. Rd5 {[%clk 0:00:46.5]} 27... d6 {[%clk 0:00:24]} 28. Rfd1
{[%clk 0:00:46.6]} 28... b5 {[%clk 0:00:24.6]} 29. Qd3 {[%clk 0:00:46.8]} 29...
bxc4 {[%clk 0:00:24]} 30. Qxc4 {[%clk 0:00:47.2]} 30... Rb2 {[%clk 0:00:25.3]}
31. Qd3 {[%clk 0:00:46.7]} 31... Reb8 {[%clk 0:00:25.9]} 32. h4 {[%clk
0:00:46.5]} 32... h5 {[%clk 0:00:26.6]} 33. Qe4 {[%clk 0:00:45.8]} 33... Qh3
{[%clk 0:00:22.1]} 34. Rxe5 {[%clk 0:00:22.5]} 34... dxe5 {[%clk 0:00:22.8]} 35.
Bd3 {[%clk 0:00:20.8]} 35... Qe6 {[%clk 0:00:18.4]} 36. Bc4 {[%clk 0:00:21.3]}
36... Qf6 {[%clk 0:00:19.9]} 37. Rf1 {[%clk 0:00:19.8]} 37... Kg7 {[%clk
0:00:20.9]} 38. Qd5 {[%clk 0:00:20.3]} 38... Rb1 {[%clk 0:00:21.2]} 39. Qxc5
{[%clk 0:00:19.8]} 39... Rxf1+ {[%clk 0:00:21.9]} 40. Bxf1 {[%clk 0:00:20.8]}
40... Rb2 {[%clk 0:00:23.1]} 41. e4 {[%clk 0:00:18.5]} 41... Rd2 {[%clk
0:00:23]} 42. Qe3 {[%clk 0:00:19]} 42... Qd6 {[%clk 0:00:23.1]} 43. Kg2 {[%clk
0:00:13.5]} 43... a5 {[%clk 0:00:23.4]} 44. a4 {[%clk 0:00:13.9]} 44... Qd4
{[%clk 0:00:24.4]} 45. Qf3 {[%clk 0:00:14.8]} 45... Rb2 {[%clk 0:00:24.6]} 46.
Bb5 {[%clk 0:00:14.9]} 46... Qd6 {[%clk 0:00:24.6]} 47. Bc4 {[%clk 0:00:15.5]}
47... Qf6 {[%clk 0:00:24.3]} 48. Qe3 {[%clk 0:00:15.7]} 48... Rb4 {[%clk
0:00:25.9]} 49. Bb5 {[%clk 0:00:16.5]} 49... Rd4 {[%clk 0:00:27.6]} 50. Qc3
{[%clk 0:00:15]} 50... Qd8 {[%clk 0:00:26.4]} 51. Qf3 {[%clk 0:00:14.6]} 51...
Qd6 {[%clk 0:00:27.6]} 52. Qe3 {[%clk 0:00:13.9]} 52... Qc5 {[%clk 0:00:28.8]}
53. Qf3 {[%clk 0:00:14.1]} 53... Rd2 {[%clk 0:00:29.6]} 54. Be8 {[%clk
0:00:14.4]} 54... Qe7 {[%clk 0:00:28.3]} 55. Bb5 {[%clk 0:00:15.3]} 55... Qf6
{[%clk 0:00:28.8]} 56. Qe3 {[%clk 0:00:15.7]} 56... Rb2 {[%clk 0:00:28.9]} 57.
Bc4 {[%clk 0:00:15]} 57... Rb8 {[%clk 0:00:25.8]} 58. Bd5 {[%clk 0:00:15.6]}
58... Rb4 {[%clk 0:00:25.9]} 59. Qa3 {[%clk 0:00:02.3]} 59... Kh7 {[%clk
0:00:21.7]} 60. Qa2 {[%clk 0:00:03.1]} 60... Kg8 {[%clk 0:00:21.4]} 61. Qa3
{[%clk 0:00:04.1]} 61... Kg7 {[%clk 0:00:22.8]} 62. Qa2 {[%clk 0:00:05.3]} 62...
Qe7 {[%clk 0:00:23.7]} 63. Qd2 {[%clk 0:00:04.8]} 63... Rxa4 {[%clk 0:00:22.9]}
64. Qc3 {[%clk 0:00:05.5]} 64... Rb4 {[%clk 0:00:22.9]} 65. Qc6 {[%clk
0:00:06.1]} 65... a4 {[%clk 0:00:23.4]} 66. Qa6 {[%clk 0:00:06.2]} 66... Rd4
{[%clk 0:00:22.8]} 67. Qa8 {[%clk 0:00:06.6]} 67... Qf6 {[%clk 0:00:23]} 68. Qa5
{[%clk 0:00:07.1]} 68... Qd6 {[%clk 0:00:21.6]} 69. Qa8 {[%clk 0:00:07.5]} 69...
Qe7 {[%clk 0:00:22]} 70. Qa5 {[%clk 0:00:08.4]} 70... Qf6 {[%clk 0:00:23.6]} 71.
Qa8 {[%clk 0:00:09.2]} 71... Rd2 {[%clk 0:00:24.2]} 72. Qa7 {[%clk 0:00:10.4]}
72... a3 {[%clk 0:00:25.3]} 73. Qe3 {[%clk 0:00:11.2]} 73... Rb2 {[%clk
0:00:22.4]} 74. Kh3 {[%clk 0:00:10.8]} 74... a2 {[%clk 0:00:22.5]} 75. Qa3
{[%clk 0:00:10.7]} 75... Qxf2 {[%clk 0:00:22.5]} 0-1

[Event "*** Titled Tuesday 3|2 Blitz"]
[Site "Chess.com"]
[Date "2015.01.27"]
[Round "2"]
[White "GulamaliRises"]
[Black "lestri"]
[Result "0-1"]
[WhiteElo "2326"]
[BlackElo "2242"]
[TimeControl "180+2"]
[EndTime "11:18:18 PST"]
[Termination "lestri won by resignation"]

1. Nf3 {[%clk 0:02:10.6]} 1... c5 {[%clk 0:02:53.2]} 2. g3 {[%clk 0:02:12.5]}
2... g6 {[%clk 0:02:54.2]} 3. Bg2 {[%clk 0:02:14.4]} 3... Bg7 {[%clk 0:02:55.4]}
4. O-O {[%clk 0:02:16.3]} 4... Nc6 {[%clk 0:02:56.4]} 5. e4 {[%clk 0:02:17.6]}
5... d6 {[%clk 0:02:55.1]} 6. h3 {[%clk 0:02:17.9]} 6... e5 {[%clk 0:02:55.8]}
7. Re1 {[%clk 0:02:19.6]} 7... Nge7 {[%clk 0:02:56.6]} 8. d3 {[%clk 0:02:13.1]}
8... O-O {[%clk 0:02:57.2]} 9. Nc3 {[%clk 0:02:13.8]} 9... h6 {[%clk 0:02:58.2]}
10. Nd2 {[%clk 0:02:14.9]} 10... Be6 {[%clk 0:02:58]} 11. Nd5 {[%clk 0:02:16]}
11... f5 {[%clk 0:02:57.4]} 12. c3 {[%clk 0:02:16]} 12... Bf7 {[%clk 0:02:57]}
13. f4 {[%clk 0:02:12.1]} 13... fxe4 {[%clk 0:02:55.9]} 14. dxe4 {[%clk
0:02:11.9]} 14... exf4 {[%clk 0:02:56.1]} 15. gxf4 {[%clk 0:02:12.6]} 15... Nxd5
{[%clk 0:02:55.4]} 16. exd5 {[%clk 0:02:14.5]} 16... Ne7 {[%clk 0:02:56.6]} 17.
Nc4 {[%clk 0:02:15.9]} 17... Nf5 {[%clk 0:02:56.3]} 18. a4 {[%clk 0:02:12.7]}
18... Re8 {[%clk 0:02:56.5]} 19. Bd2 {[%clk 0:02:12.8]} 19... Qf6 {[%clk
0:02:57.4]} 20. Qg4 {[%clk 0:02:09.7]} 20... b6 {[%clk 0:02:54.7]} 21. Kf2
{[%clk 0:01:54.3]} 21... Kh7 {[%clk 0:02:54.7]} 22. Kg1 {[%clk 0:01:47.1]} 22...
Rad8 {[%clk 0:02:52]} 23. Kh2 {[%clk 0:01:43.3]} 23... Re7 {[%clk 0:02:51]} 24.
Rxe7 {[%clk 0:01:42.9]} 24... Nxe7 {[%clk 0:02:51.4]} 25. Ne3 {[%clk 0:01:41.3]}
25... h5 {[%clk 0:02:49.5]} 26. Qf3 {[%clk 0:01:37.2]} 26... Nf5 {[%clk
0:02:47.9]} 27. Nxf5 {[%clk 0:01:34.9]} 27... Qxf5 {[%clk 0:02:49.4]} 28. Re1
{[%clk 0:01:35.8]} 28... Re8 {[%clk 0:02:50.3]} 29. Rxe8 {[%clk 0:01:35.6]}
29... Bxe8 {[%clk 0:02:51.8]} 30. Qe4 {[%clk 0:01:37]} 30... Qxe4 {[%clk
0:02:51.6]} 31. Bxe4 {[%clk 0:01:38.9]} 31... Bxa4 {[%clk 0:02:52.9]} 32. Kg2
{[%clk 0:01:33.6]} 32... Bd7 {[%clk 0:02:53.1]} 33. Be1 {[%clk 0:01:27.5]} 33...
Bf6 {[%clk 0:02:52.4]} 34. Kg3 {[%clk 0:01:26.4]} 34... b5 {[%clk 0:02:52.6]}
35. Bd3 {[%clk 0:01:24.8]} 35... c4 {[%clk 0:02:51.7]} 36. Be4 {[%clk
0:01:21.9]} 36... a5 {[%clk 0:02:50.9]} 37. Kg2 {[%clk 0:01:23]} 37... Kg7
{[%clk 0:02:49.6]} 38. Kg3 {[%clk 0:01:23.9]} 38... Kf7 {[%clk 0:02:50.3]} 39.
Kg2 {[%clk 0:01:25.3]} 39... a4 {[%clk 0:02:47.6]} 40. Kg3 {[%clk 0:01:17.5]}
40... b4 {[%clk 0:02:48.6]} 0-1